fUSD/lending_fUSD_20250417
["ID","MTS","AMOUNT","RATE_DAILY","PERIOD"]
[358230321,1744858286978,-1132.52,0.00052876,120]
[358230322,1744858286987,-500.0,0.00052876,120]
[358230323,1744858286996,-500.0,0.00052876,120]
[358230324,1744858287005,-500.0,0.00052876,120]
[358230325,1744858287014,-500.0,0.00052876,120]
[358230326,1744858287023,-500.0,0.00052876,120]
[358230327,1744858287033,-5735.765822,0.00052876,120]
[358230328,1744858287044,-5735.765822,0.00052876,120]
[358230329,1744858287053,-500.0,0.00052876,120]
[358230330,1744858287063,-1052.23,0.00052876,120]
[358230331,1744858287073,-500.0,0.00052876,120]
[358230332,1744858287082,-1093.58,0.00052876,120]
[358230333,1744858287092,-500.0,0.00052876,120]
[358230334,1744858287103,-1545.17,0.00052876,120]
[358230335,1744858287113,-1053.96,0.00052876,120]
[358230336,1744858287122,-500.0,0.00052876,120]
[358230337,1744858287132,-500.0,0.00052876,120]
[358230338,1744858287141,-500.0,0.00052876,120]
[358230339,1744858287152,-2317.13,0.00052876,120]
[358230340,1744858287171,-500.0,0.00052876,120]
[358230341,1744858287181,-1000.0,0.00052876,28]
[358230342,1744858287190,-1000.0,0.00052876,28]
[358230343,1744858287199,-500.0,0.00052876,120]
[358230344,1744858287208,-1000.0,0.00052876,28]
[358230345,1744858287217,-1000.0,0.00052876,28]
[358230346,1744858287227,-1000.0,0.00052876,28]
[358230347,1744858287236,-1000.0,0.00052876,28]
[358230348,1744858287247,-1000.0,0.00052876,28]
[358230349,1744858287256,-630.82,0.00052876,120]
[358230350,1744858287265,-1000.0,0.00052876,28]
[358230351,1744858287275,-1244.03,0.00052876,120]
[358230352,1744858287285,-780.6,0.00052876,120]
[358230353,1744858287296,-1015.520946,0.00052876,28]
[358230354,1744858287307,-500.0,0.00052876,120]
[358230355,1744858287317,-558.26835619,0.00052876,120]
[358230356,1744858287327,-500.0,0.00052876,120]
[358230357,1744858287336,-1200.78,0.00052876,120]
[358230358,1744858287346,-500.0,0.00052876,120]
[358230359,1744858287355,-500.0,0.00052876,120]
[358230360,1744858287365,-500.0,0.00052876,120]
[358230361,1744858287375,-2648.1,0.00052876,120]
[358230362,1744858287384,-500.0,0.00052876,120]
[358230363,1744858287394,-976.31,0.00052876,120]
[358230364,1744858287404,-500.0,0.00052876,120]
[358230365,1744858287413,-500.0,0.00052876,120]
[358230366,1744858287422,-500.0,0.00052876,120]
[358230367,1744858287436,-500.0,0.00052876,120]
[358230368,1744858287445,-500.0,0.00052876,120]
[358230369,1744858287455,-627.75,0.00052876,120]
[358230370,1744858287464,-151.0,0.00052876,120]
[358230371,1744858287475,-151.0,0.00052876,120]
[358230372,1744858287484,-500.0,0.00052876,120]
[358230373,1744858287493,-500.0,0.00052876,120]
[358230374,1744858287503,-507.97838445,0.00052876,120]
[358230375,1744858287513,-1484.61,0.00052876,120]
[358230376,1744858287523,-500.0,0.00052876,120]
[358230377,1744858287534,-500.0,0.00052876,120]
[358230378,1744858287543,-500.0,0.00052876,120]
[358230379,1744858287552,-500.0,0.00052876,120]
[358230380,1744858287562,-664.07,0.00052876,120]
[358230381,1744858287571,-500.0,0.00052876,120]
[358230382,1744858287580,-500.0,0.00052876,120]
[358230383,1744858287590,-500.0,0.00052876,120]
[358230384,1744858287599,-500.0,0.00052876,120]
[358230385,1744858287609,-187.76438576,0.00052876,120]
[358230386,1744858287619,-520.83,0.00052876,120]
[358230387,1744858287628,-500.0,0.00052876,120]
[358230388,1744858287637,-573.70762522,0.00052927,15]
[358230389,1744858287646,-643.48518319,0.00052941,30]
[358230390,1744858287655,-150.0,0.00052979,7]
[358230391,1744858287665,-1670.37136404,0.00053,30]
[358230392,1744858287674,-573.70762522,0.0005305,15]
[358230393,1744858287684,-759.0,0.00053134,7]
[358230394,1744858287694,-671.68,0.00053138,120]
[358230395,1744858287703,-892.86,0.00053138,120]
[358230396,1744858287713,-500.0,0.00053138,120]
[358230397,1744858287722,-500.0,0.00053138,120]
[358230398,1744858287732,-344.90699952,0.00053138,120]
[358230399,1744858287741,-408.43538877,0.00053138,120]
[358230400,1744858287751,-500.0,0.00053138,120]
[358230401,1744858287760,-550.06,0.00053149,15]
[358230402,1744858287770,-550.06,0.00053149,15]
[358230403,1744858287780,-550.06,0.00053149,15]
[358230404,1744858287789,-550.06,0.00053149,15]
[358230405,1744858287800,-550.06,0.00053149,15]
[358230406,1744858287809,-550.17431674,0.00053149,15]
[358230407,1744858287819,-1277.09059132,0.0005315,120]
[358230408,1744858287828,-171.366624,0.0005315,120]
[358230409,1744858287838,-671.919064,0.0005315,120]
[358230410,1744858287847,-503.2542919,0.0005315,120]
[358230411,1744858287856,-500.0,0.0005315,120]
[358230412,1744858287866,-500.0,0.0005315,120]
[358230413,1744858287875,-503.98180571,0.0005315,120]
[358230414,1744858287884,-457.75498196,0.0005315,120]
[358230415,1744858287894,-1027.9,0.0005315,120]
[358230416,1744858287903,-500.0,0.0005315,120]
[358230417,1744858287913,-1018.07,0.0005315,120]
[358230418,1744858287922,-500.0,0.0005315,120]
[358230419,1744858287931,-500.0,0.0005315,120]
[358230420,1744858287941,-500.0,0.0005315,120]
[358230421,1744858287950,-2828.8,0.0005315,2]
[358230422,1744858287959,-368.0585044,0.0005315,120]
[358230423,1744858287968,-500.0,0.0005315,120]
[358230424,1744858287978,-131030.97,0.0005315,7]
[358230425,1744858287987,-1074.6,0.0005315,120]
[358230426,1744858287996,-512.75,0.0005315,120]
[358230427,1744858288005,-500.0,0.0005315,120]
[358230428,1744858288015,-500.0,0.0005315,120]
[358230429,1744858288024,-500.0,0.0005315,120]
[358230430,1744858288033,-645.9133015,0.0005315,120]
[358230431,1744858288043,-500.0,0.0005315,120]
[358230432,1744858288052,-500.0,0.0005315,120]
[358230433,1744858288061,-500.0,0.0005315,120]
[358230434,1744858288071,-500.0,0.0005315,120]
[358230435,1744858288079,-364.71553491,0.0005315,120]
[358230436,1744858288087,-500.0,0.0005315,120]
[358230437,1744858288095,-500.0,0.0005315,120]
[358230438,1744858288104,-244.25265389,0.0005315,120]
[358230439,1744858288113,-501.51,0.0005315,120]
[358230440,1744858288122,-500.0,0.0005315,120]
[358230441,1744858288132,-500.0,0.0005315,120]
[358230442,1744858288141,-500.0,0.0005315,120]
[358230443,1744858288151,-500.0,0.0005315,120]
[358230444,1744858288160,-300.0,0.0005315,120]
[358230445,1744858288170,-500.0,0.0005315,120]
[358230446,1744858288179,-500.0,0.0005315,120]
[358230447,1744858288189,-1163.74,0.0005315,120]
[358230448,1744858288198,-500.0,0.0005315,120]
[358230449,1744858288207,-500.0,0.0005315,120]
[358230450,1744858288216,-462.73133691,0.0005315,120]
[358230451,1744858288225,-500.0,0.0005315,120]
[358230452,1744858288235,-942.51,0.0005315,120]
[358230453,1744858288244,-500.0,0.0005315,120]
[358230454,1744858288253,-500.0,0.0005315,120]
[358230455,1744858288263,-1668.15,0.0005315,120]
[358230456,1744858288273,-500.0,0.0005315,120]
[358230457,1744858288282,-500.0,0.0005315,120]
[358230458,1744858288291,-500.0,0.0005315,120]
[358230459,1744858288299,-500.0,0.0005315,120]
[358230460,1744858288308,-500.0,0.0005315,120]
[358230461,1744858288318,-500.0,0.0005315,120]
[358230462,1744858288327,-500.0,0.0005315,120]
[358230463,1744858288337,-500.0,0.0005315,120]
[358230464,1744858288347,-747.62,0.0005315,120]
[358230465,1744858288358,-500.0,0.0005315,120]
[358230466,1744858288367,-500.0,0.0005315,120]
[358230467,1744858288377,-500.0,0.0005315,120]
[358230468,1744858288387,-500.0,0.0005315,120]
[358230469,1744858288397,-500.0,0.0005315,120]
[358230470,1744858288406,-500.0,0.0005315,120]
[358230471,1744858288416,-500.0,0.0005315,120]
[358230472,1744858288427,-500.0,0.0005315,120]
[358230473,1744858288438,-500.0,0.0005315,120]
[358230474,1744858288450,-500.0,0.0005315,120]
[358230475,1744858288460,-500.0,0.0005315,120]
[358230476,1744858288469,-500.0,0.0005315,120]
[358230477,1744858288478,-500.0,0.0005315,120]
[358230478,1744858288487,-500.0,0.0005315,120]
[358230479,1744858288498,-497.10591502,0.0005315,120]
[358230480,1744858288507,-500.0,0.0005315,120]
[358230481,1744858288516,-500.0,0.0005315,120]
[358230482,1744858288527,-500.0,0.0005315,120]
[358230483,1744858288536,-500.0,0.0005315,120]
[358230484,1744858288547,-1683.3,0.0005315,120]
[358230485,1744858288556,-964.81,0.0005315,30]
[358230486,1744858288566,-500.0,0.0005315,120]
[358230487,1744858288575,-590.1533702,0.0005315,120]
[358230488,1744858288584,-299.51083515,0.0005315,120]
[358230489,1744858288594,-673.66,0.0005315,2]
[358230490,1744858288603,-547.74736898,0.0005315,120]
[358230491,1744858288613,-500.0,0.0005315,120]
[358230492,1744858288622,-500.0,0.0005315,120]
[358230493,1744858288631,-500.0,0.0005315,120]
[358230494,1744858288641,-739.67,0.0005315,120]
[358230495,1744858288650,-739.67,0.0005315,120]
[358230496,1744858288659,-500.0,0.0005315,120]
[358230497,1744858288668,-500.0,0.0005315,120]
[358230498,1744858288677,-500.0,0.0005315,120]
[358230499,1744858288686,-500.0,0.0005315,120]
[358230500,1744858288695,-1000.0,0.0005315,120]
[358230501,1744858288704,-500.0,0.0005315,120]
[358230502,1744858288713,-614.55,0.0005315,120]
[358230503,1744858288723,-500.0,0.0005315,120]
[358230504,1744858288732,-500.0,0.0005315,120]
[358230505,1744858288741,-500.0,0.0005315,120]
[358230506,1744858288750,-500.0,0.0005315,120]
[358230507,1744858288759,-500.0,0.0005315,120]
[358230508,1744858288768,-500.0,0.0005315,120]
[358230509,1744858288777,-1727.98,0.0005315,120]
[358230510,1744858288786,-500.0,0.0005315,120]
[358230511,1744858288796,-511.39006703,0.0005315,120]
[358230512,1744858288805,-500.0,0.0005315,120]
[358230513,1744858288815,-500.0,0.0005315,120]
[358230514,1744858288824,-500.0,0.0005315,120]
[358230515,1744858288834,-539.28,0.0005315,120]
[358230516,1744858288844,-1975.51,0.0005315,120]
[358230517,1744858288854,-500.0,0.0005315,120]
[358230518,1744858288864,-567.86,0.0005315,120]
[358230519,1744858288874,-500.0,0.0005315,120]
[358230520,1744858288883,-1074.62,0.0005315,120]
[358230521,1744858288893,-815.44,0.0005315,120]
[358230522,1744858288902,-500.0,0.0005315,120]
[358230523,1744858288911,-500.0,0.0005315,120]
[358230524,1744858288921,-669.36,0.0005315,120]
[358230525,1744858288930,-524.79836422,0.0005315,120]
[358230526,1744858288940,-1264.26,0.0005315,120]
[358230527,1744858288950,-500.0,0.0005315,120]
[358230528,1744858288960,-714.49,0.0005315,120]
[358230529,1744858288972,-555.96565496,0.0005315,120]
[358230530,1744858288982,-500.0,0.0005315,120]
[358230531,1744858288991,-328.43477936,0.0005315,120]
[358230532,1744858289001,-500.0,0.0005315,120]
[358230533,1744858289011,-500.0,0.0005315,120]
[358230534,1744858289020,-767.85,0.0005315,120]
[358230535,1744858289030,-500.0,0.0005315,120]
[358230536,1744858289039,-1949.99,0.0005315,120]
[358230537,1744858289050,-1953.53,0.0005315,120]
[358230538,1744858289061,-500.0,0.0005315,120]
[358230539,1744858289072,-500.0,0.0005315,120]
[358230540,1744858289082,-500.0,0.0005315,120]
[358230541,1744858289092,-500.0,0.0005315,120]
[358230542,1744858289101,-500.0,0.0005315,120]
[358230543,1744858289111,-609.46,0.0005315,120]
[358230544,1744858289120,-598.918602,0.0005315,120]
[358230545,1744858289129,-454.76075279,0.0005315,120]
[358230546,1744858289139,-500.0,0.0005315,120]
[358230547,1744858289154,-500.0,0.0005315,120]
[358230548,1744858289163,-500.0,0.0005315,120]
[358230549,1744858289172,-832.63,0.0005315,120]
[358230550,1744858289181,-506.95184098,0.0005315,120]
[358230551,1744858289190,-500.0,0.0005315,120]
[358230552,1744858289199,-2867.27,0.0005315,120]
[358230553,1744858289208,-500.0,0.0005315,120]
[358230554,1744858289217,-534.26837962,0.0005315,60]
[358230555,1744858289226,-500.0,0.0005315,120]
[358230556,1744858289235,-1201.93,0.0005315,120]
[358230557,1744858289245,-487.31680264,0.0005315,120]
[358230558,1744858289254,-500.0,0.0005315,120]
[358230559,1744858289263,-500.0,0.0005315,120]
[358230560,1744858289272,-500.0,0.0005315,120]
[358230561,1744858289282,-535.22248751,0.0005315,120]
[358230562,1744858289291,-906.23,0.0005315,120]
[358230563,1744858289302,-1534.19,0.0005315,120]
[358230564,1744858289311,-500.0,0.0005315,120]
[358230565,1744858289321,-500.0,0.0005315,120]
[358230566,1744858289330,-500.0,0.0005315,120]
[358230567,1744858289340,-500.0,0.0005315,120]
[358230568,1744858289350,-1284.74,0.0005315,120]
[358230569,1744858289360,-1860.5,0.0005315,120]
[358230570,1744858289369,-1008.59,0.0005315,120]
[358230571,1744858289379,-500.0,0.0005315,120]
[358230572,1744858289388,-1161.23,0.0005315,120]
[358230573,1744858289398,-500.0,0.0005315,120]
[358230574,1744858289407,-500.0,0.0005315,120]
[358230575,1744858289417,-2071.3,0.0005315,120]
[358230576,1744858289426,-500.0,0.0005315,120]
[358230577,1744858289439,-1412.98,0.0005315,120]
[358230578,1744858289448,-500.0,0.0005315,120]
[358230579,1744858289458,-500.0,0.0005315,120]
[358230580,1744858289467,-1166.11,0.0005315,120]
[358230581,1744858289479,-1297.72,0.0005315,120]
[358230582,1744858289489,-500.0,0.0005315,120]
[358230583,1744858289499,-500.0,0.0005315,120]
[358230584,1744858289512,-500.0,0.0005315,120]
[358230585,1744858289522,-500.0,0.0005315,120]
[358230586,1744858289531,-500.0,0.0005315,120]
[358230587,1744858289540,-500.0,0.0005315,120]
[358230588,1744858289550,-500.0,0.0005315,120]
[358230589,1744858289560,-1029.43,0.0005315,120]
[358230590,1744858289570,-644.52061501,0.0005315,120]
[358230591,1744858289579,-1353.84,0.0005315,120]
[358230592,1744858289588,-998.22,0.0005315,120]
[358230593,1744858289598,-500.0,0.0005315,120]
[358230594,1744858289608,-500.0,0.0005315,120]
[358230595,1744858289617,-504.02,0.0005315,120]
[358230596,1744858289627,-1311.04,0.0005315,120]
[358230597,1744858289636,-500.0,0.0005315,120]
[358230598,1744858289646,-1467.25,0.0005315,120]
[358230599,1744858289656,-500.0,0.0005315,120]
[358230600,1744858289666,-500.0,0.0005315,120]
[358230601,1744858289675,-500.0,0.0005315,120]
[358230602,1744858289685,-500.0,0.0005315,120]
[358230603,1744858289695,-1217.53,0.0005315,120]
[358230604,1744858289705,-647.24,0.0005315,120]
[358230605,1744858289714,-733.63,0.0005315,120]
[358230606,1744858289724,-500.0,0.0005315,120]
[358230607,1744858289734,-1326.05,0.0005315,35]
[358230608,1744858289744,-2113.15,0.0005315,120]
[358230609,1744858289753,-500.0,0.0005315,120]
[358230610,1744858289961,-500.0,0.0005315,120]
[358230611,1744858289971,-626.26,0.0005315,120]
[358230612,1744858289981,-967.49,0.0005315,120]
[358230613,1744858289990,-500.0,0.0005315,120]
[358230614,1744858290000,-500.0,0.0005315,120]
[358230615,1744858290010,-308.63372474,0.0005315,120]
[358230616,1744858290020,-500.0,0.0005315,120]
[358230617,1744858290029,-1460.72,0.0005315,120]
[358230618,1744858290038,-620.57,0.0005315,120]
[358230619,1744858290049,-500.0,0.0005315,120]
[358230620,1744858290059,-692.08,0.0005315,120]
[358230621,1744858290068,-940.79,0.0005315,120]
[358230622,1744858290078,-653.46,0.0005315,120]
[358230623,1744858290088,-500.0,0.0005315,120]
[358230624,1744858290097,-500.0,0.0005315,120]
[358230625,1744858290107,-769.41,0.0005315,120]
[358230626,1744858290116,-963.83,0.0005315,120]
[358230627,1744858290125,-1338.87,0.0005315,120]
[358230628,1744858290135,-500.0,0.0005315,120]
[358230629,1744858290145,-151.0,0.0005315,120]
[358230630,1744858290155,-500.0,0.0005315,120]
[358230631,1744858290165,-151.0,0.0005315,120]
[358230632,1744858290175,-500.0,0.0005315,120]
[358230633,1744858290184,-587.69,0.0005315,120]
[358230634,1744858290194,-263.44774146,0.0005315,120]
[358230635,1744858290204,-1212.34,0.0005315,120]
[358230636,1744858290214,-500.0,0.0005315,120]
[358230637,1744858290224,-772.46,0.0005315,120]
[358230638,1744858290233,-809.54,0.0005315,120]
[358230639,1744858290248,-585.77,0.0005315,120]
[358230640,1744858290259,-557.68,0.0005315,120]
[358230641,1744858290269,-2037.67,0.0005315,120]
[358230642,1744858290278,-707.4,0.0005315,120]
[358230643,1744858290287,-647.81,0.0005315,120]
[358230644,1744858290299,-1790.67,0.0005315,120]
[358230645,1744858290310,-666.48,0.0005315,120]
[358230646,1744858290319,-500.0,0.0005315,120]
[358230647,1744858290329,-1576.81,0.0005315,120]
[358230648,1744858290338,-204.050492,0.0005315,120]
[358230649,1744858290348,-500.0,0.0005315,120]
[358230650,1744858290358,-731.71,0.0005315,120]
[358230651,1744858290370,-1734.03,0.0005315,120]
[358230652,1744858290380,-500.0,0.0005315,120]
[358230653,1744858290390,-500.0,0.0005315,120]
[358230654,1744858290400,-500.0,0.0005315,120]
[358230655,1744858290410,-1170.13,0.0005315,120]
[358230656,1744858290419,-1165.93,0.0005315,120]
[358230657,1744858290429,-500.0,0.0005315,120]
[358230658,1744858290441,-500.0,0.0005315,120]
[358230659,1744858290451,-1438.67,0.0005315,120]
[358230660,1744858290460,-500.0,0.0005315,120]
[358230661,1744858290469,-500.0,0.0005315,30]
[358230662,1744858290481,-475.46631276,0.0005315,120]
[358230663,1744858290490,-1498.5,0.0005315,120]
[358230664,1744858290500,-700.39,0.0005315,120]
[358230665,1744858290509,-886.03,0.0005315,120]
[358230666,1744858290520,-1279.89,0.0005315,120]
[358230667,1744858290530,-356.86725817,0.0005315,120]
[358230668,1744858290539,-500.0,0.0005315,120]
[358230669,1744858290551,-1542.02,0.0005315,120]
[358230670,1744858290560,-500.0,0.0005315,120]
[358230671,1744858290569,-689.86,0.0005315,120]
[358230672,1744858290579,-500.0,0.0005315,120]
[358230673,1744858290588,-500.0,0.0005315,120]
[358230674,1744858290598,-1138.28,0.0005315,120]
[358230675,1744858290607,-500.0,0.0005315,120]
[358230676,1744858290617,-576.91,0.0005315,120]
[358230677,1744858290627,-529.92,0.0005315,120]
[358230678,1744858290636,-2907.8,0.0005315,120]
[358230679,1744858290646,-500.0,0.0005315,120]
[358230680,1744858290656,-1641.83,0.0005315,120]
[358230681,1744858290666,-500.0,0.0005315,120]
[358230682,1744858290676,-500.0,0.0005315,120]
[358230683,1744858290685,-500.0,0.0005315,120]
[358230684,1744858290695,-500.0,0.0005315,120]
[358230685,1744858290705,-2284.4,0.0005315,120]
[358230686,1744858290715,-500.0,0.0005315,120]
[358230687,1744858290725,-2376.49,0.0005315,120]
[358230688,1744858290735,-2312.15,0.0005315,120]
[358230689,1744858290745,-1704.88,0.0005315,120]
[358230690,1744858290755,-500.0,0.0005315,120]
[358230691,1744858290766,-500.0,0.0005315,120]
[358230692,1744858290776,-1037.71,0.0005315,120]
[358230693,1744858290786,-668.17,0.0005315,30]
[358230694,1744858290800,-500.0,0.0005315,120]
[358230695,1744858290810,-1034.98,0.0005315,120]
[358230696,1744858290820,-500.0,0.0005315,120]
[358230697,1744858290830,-2316.02,0.0005315,120]
[358230698,1744858290840,-515.10738859,0.0005315,120]
[358230699,1744858290850,-1411.35,0.0005315,120]
[358230700,1744858290860,-778.98,0.0005315,120]
[358230701,1744858290871,-889.43,0.0005315,120]
[358230702,1744858290881,-500.0,0.0005315,120]
[358230703,1744858290891,-637.61,0.0005315,120]
[358230704,1744858290902,-2386.32,0.0005315,120]
[358230705,1744858290912,-1171.1,0.0005315,120]
[358230706,1744858290921,-500.0,0.0005315,120]
[358230707,1744858290930,-500.0,0.0005315,120]
[358230708,1744858290940,-772.84,0.0005315,120]
[358230709,1744858290950,-1897.66,0.0005315,120]
[358230710,1744858290960,-500.0,0.0005315,120]
[358230711,1744858290970,-523.45,0.0005315,120]
[358230712,1744858290980,-500.0,0.0005315,120]
[358230713,1744858290990,-500.0,0.0005315,120]
[358230714,1744858291001,-877.41,0.0005315,120]
[358230715,1744858291012,-500.0,0.0005315,120]
[358230716,1744858291022,-596.21,0.0005315,120]
[358230717,1744858291032,-500.0,0.0005315,120]
[358230718,1744858291045,-620.7,0.0005315,30]
[358230719,1744858291056,-500.0,0.0005315,120]
[358230720,1744858291066,-601.18,0.0005315,120]
[358230721,1744858291076,-1484.94,0.0005315,120]
[358230722,1744858291086,-500.0,0.0005315,120]
[358230723,1744858291096,-500.0,0.0005315,120]
[358230724,1744858291105,-500.0,0.0005315,120]
[358230725,1744858291115,-844.65,0.0005315,120]
[358230726,1744858291125,-500.0,0.0005315,120]
[358230727,1744858291135,-917.94,0.0005315,120]
[358230728,1744858291144,-500.0,0.0005315,120]
[358230729,1744858291154,-500.0,0.0005315,120]
[358230730,1744858291164,-830.52,0.0005315,120]
[358230731,1744858291173,-2177.77,0.0005315,120]
[358230732,1744858291183,-924.06,0.0005315,120]
[358230733,1744858291192,-500.0,0.0005315,120]
[358230734,1744858291203,-508.79,0.0005315,120]
[358230735,1744858291213,-313.56306995,0.0005315,120]
[358230736,1744858291223,-500.0,0.0005315,120]
[358230737,1744858291233,-2352.51,0.0005315,120]
[358230738,1744858291243,-652.67,0.0005315,120]
[358230739,1744858291253,-500.0,0.0005315,120]
[358230740,1744858291264,-500.0,0.0005315,120]
[358230741,1744858291274,-151.0,0.0005315,120]
[358230742,1744858291284,-151.0,0.0005315,120]
[358230743,1744858291294,-592.18,0.0005315,120]
[358230744,1744858291304,-758.19,0.0005315,120]
[358230745,1744858291313,-500.0,0.0005315,120]
[358230746,1744858291323,-500.0,0.0005315,120]
[358230747,1744858291333,-500.0,0.0005315,120]
[358230748,1744858291343,-621.27,0.0005315,120]
[358230749,1744858291352,-1555.32,0.0005315,120]
[358230750,1744858291362,-1738.08,0.0005315,120]
[358230751,1744858291372,-593.62,0.0005315,120]
[358230752,1744858291382,-690.04,0.0005315,120]
[358230753,1744858291392,-1375.95,0.0005315,120]
[358230754,1744858291402,-500.0,0.0005315,120]
[358230755,1744858291412,-677.16,0.0005315,120]
[358230756,1744858291422,-500.0,0.0005315,120]
[358230757,1744858291432,-1551.55,0.0005315,120]
[358230758,1744858291442,-1893.07,0.0005315,120]
[358230759,1744858291456,-500.0,0.0005315,120]
[358230760,1744858291466,-500.0,0.0005315,120]
[358230761,1744858291475,-500.0,0.0005315,120]
[358230762,1744858291483,-671.74,0.0005315,120]
[358230763,1744858291493,-500.0,0.0005315,120]
[358230764,1744858291502,-519.08493069,0.0005315,120]
[358230765,1744858291511,-500.0,0.0005315,120]
[358230766,1744858291520,-339.10066738,0.0005315,120]
[358230767,1744858291530,-838.84,0.0005315,120]
[358230768,1744858291539,-816.74,0.0005315,120]
[358230769,1744858291549,-191.42367023,0.0005315,120]
[358230770,1744858291558,-2118.02,0.0005315,120]
[358230771,1744858291567,-500.0,0.0005315,120]
[358230772,1744858291576,-2029.77,0.0005315,120]
[358230773,1744858291586,-151.0,0.0005315,120]
[358230774,1744858291595,-241.217495,0.0005315,120]
[358230775,1744858291604,-500.0,0.0005315,120]
[358230776,1744858291614,-634.18,0.0005315,120]
[358230777,1744858291623,-1739.39,0.0005315,120]
[358230778,1744858291633,-500.0,0.0005315,120]
[358230779,1744858291643,-500.0,0.0005315,120]
[358230780,1744858291652,-1304.17,0.0005315,120]
[358230781,1744858291662,-500.0,0.0005315,120]
[358230782,1744858291672,-500.0,0.0005315,120]
[358230783,1744858291682,-882.07,0.0005315,120]
[358230784,1744858291691,-151.0,0.0005315,120]
[358230785,1744858291701,-151.0,0.0005315,120]
[358230786,1744858291711,-500.0,0.0005315,120]
[358230787,1744858291720,-500.0,0.0005315,120]
[358230788,1744858291730,-500.0,0.0005315,120]
[358230789,1744858291740,-195.919403,0.0005315,120]
[358230790,1744858291750,-195.919395,0.0005315,120]
[358230791,1744858291759,-500.0,0.0005315,120]
[358230792,1744858291769,-500.0,0.0005315,120]
[358230793,1744858291778,-500.0,0.0005315,120]
[358230794,1744858291787,-500.0,0.0005315,120]
[358230795,1744858291798,-500.0,0.0005315,120]
[358230796,1744858291807,-500.0,0.0005315,120]
[358230797,1744858291817,-500.0,0.0005315,120]
[358230798,1744858291827,-1916.21,0.0005315,120]
[358230799,1744858291837,-500.0,0.0005315,120]
[358230800,1744858291847,-760.84,0.0005315,8]
[358230801,1744858291856,-500.0,0.0005315,120]
[358230802,1744858291866,-605.88148577,0.0005315,120]
[358230803,1744858291876,-500.0,0.0005315,120]
[358230804,1744858291888,-500.0,0.0005315,120]
[358230805,1744858291899,-500.0,0.0005315,120]
[358230806,1744858291908,-500.0,0.0005315,120]
[358230807,1744858291918,-500.0,0.0005315,120]
[358230808,1744858291928,-1199.87,0.0005315,120]
[358230809,1744858291937,-567.59281666,0.0005315,120]
[358230810,1744858291946,-509.61,0.0005315,120]
[358230811,1744858291955,-500.0,0.0005315,120]
[358230812,1744858291965,-668.08,0.0005315,120]
[358230813,1744858291978,-500.0,0.0005315,120]
[358230814,1744858291988,-455.27,0.0005315,120]
[358230815,1744858291999,-500.0,0.0005315,120]
[358230816,1744858292009,-1005.74,0.0005315,120]
[358230817,1744858292018,-2003.14,0.0005315,120]
[358230818,1744858292029,-500.0,0.0005315,120]
[358230819,1744858292038,-500.0,0.0005315,120]
[358230820,1744858292050,-2105.07,0.0005315,120]